bitfinex/quotes_BTCUSD_20250527
["timestamp","ask_amount","ask_price","bid_price","bid_amount"]
[1748351488084,0.1998001,110110.0,110100.0,0.04794862]
[1748351489571,0.009081,110120.0,110110.0,0.82355011]
[1748351489795,0.19976348,110130.0,110120.0,0.727691]
[1748351490020,0.01815779,110140.0,110130.0,0.3632]
[1748351490252,0.18163434,110150.0,110140.0,0.0232]
[1748351490253,0.19979114,110150.0,110140.0,0.0232]
[1748351490475,0.19979114,110150.0,110140.0,0.0455]
[1748351491161,0.29084509,110150.0,110140.0,0.0455]
[1748351491616,0.19979114,110150.0,110140.0,0.15644062]
[1748351492070,0.00907795,110150.0,110140.0,0.34296499]
[1748351492291,0.03631236,110150.0,110140.0,0.35638622]
[1748351492513,0.21788368,110150.0,110140.0,0.33822769]
[1748351492731,0.19972754,110150.0,110140.0,0.04584862]
[1748351492960,0.19972754,110150.0,110140.0,0.19873762]
[1748351493648,0.19972754,110150.0,110140.0,0.38940396]
[1748351493869,0.01815581,110150.0,110140.0,0.73958289]
[1748351494098,0.027234,110150.0,110140.0,0.74866166]
[1748351494326,0.027234,110150.0,110140.0,0.74866174]
[1748351494546,0.02723392,110150.0,110140.0,0.75774051]
[1748351494768,0.03631236,110150.0,110140.0,0.73050387]
[1748351494999,0.04539088,110150.0,110140.0,0.72142469]
[1748351495226,0.18163097,110160.0,110150.0,0.18157058]
[1748351495227,0.19978588,110160.0,110150.0,0.18157058]
[1748351495456,0.19070867,110160.0,110150.0,0.045]
[1748351496179,0.19969096,110170.0,110160.0,0.2287541]
[1748351496412,0.0181512,110180.0,110170.0,1.3351295]
[1748351496641,0.0363029,110180.0,110170.0,1.15926621]
[1748351496869,0.0363029,110180.0,110170.0,0.56873762]
[1748351496870,0.20874864,110180.0,110170.0,0.56873762]
[1748351497107,0.19967292,110180.0,110170.0,0.489191]
[1748351497368,0.19967292,110180.0,110170.0,0.00851896]
[1748351497369,0.29072687,110180.0,110170.0,0.00851896]
[1748351497600,0.29072687,110180.0,110160.0,0.34]
[1748351497601,0.19970893,110160.0,110150.0,0.049522]
[1748351497826,0.19970893,110160.0,110150.0,0.3623]
[1748351498074,0.19063164,110160.0,110150.0,0.3862]
[1748351498533,0.19063164,110160.0,110150.0,0.39472436]
[1748351499240,0.20878663,110160.0,110150.0,1.5573113]
[1748351499470,0.20878663,110160.0,110150.0,0.81727346]
[1748351499733,0.19970934,110160.0,110150.0,0.58025436]
[1748351499962,0.19064894,110150.0,110140.0,0.02264862]
[1748351500186,0.19064894,110150.0,110140.0,0.04644862]
[1748351501395,0.28170289,110150.0,110140.0,0.00014862]
[1748351501635,0.32802859,110150.0,110140.0,0.00014862]
[1748351502372,0.38862859,110150.0,110140.0,0.00014862]
[1748351502599,0.38802859,110150.0,110140.0,0.00014862]
[1748351502828,0.19981775,110100.0,110090.0,0.027235]
[1748351503049,0.19981775,110100.0,110090.0,0.80049884]
[1748351503530,0.19981775,110100.0,110090.0,0.39468384]
[1748351503979,0.19981775,110100.0,110090.0,0.73468384]
[1748351504208,0.19981775,110100.0,110090.0,0.17587643]
[1748351504428,0.19981775,110100.0,110090.0,0.51587643]
[1748351504888,0.19981775,110100.0,110090.0,0.49952943]
[1748351505100,0.19981775,110100.0,110090.0,0.60412943]
[1748351506165,0.19981775,110100.0,110090.0,0.58012443]
[1748351506386,0.19981775,110100.0,110090.0,0.39529443]
[1748351506609,0.19981775,110100.0,110090.0,0.50735543]
[1748351507093,0.19981775,110100.0,110090.0,0.51426043]
[1748351507347,0.01816323,110110.0,110100.0,0.39538265]
[1748351507569,0.02724135,110120.0,110110.0,1.34563226]
[1748351507790,0.0363221,110120.0,110110.0,1.4841215]
[1748351508011,0.20886239,110120.0,110110.0,0.72885428]
[1748351508226,0.20886239,110120.0,110110.0,0.73793594]
[1748351508449,0.1997818,110120.0,110110.0,0.72885436]
[1748351508674,0.19070105,110120.0,110110.0,0.71977254]
[1748351508899,0.18162005,110120.0,110110.0,0.71977254]
[1748351509122,0.18162005,110120.0,110110.0,0.72885436]
[1748351509351,0.18162005,110120.0,110110.0,0.538136]
[1748351509591,0.0090805,110120.0,110110.0,0.74701734]
[1748351509825,0.0181606,110120.0,110110.0,0.76517991]
[1748351510052,0.03632235,110120.0,110110.0,0.74701734]
[1748351510507,0.20886206,110120.0,110110.0,0.74701759]
[1748351510731,0.20886206,110120.0,110110.0,0.538136]
[1748351511000,0.19070097,110120.0,110110.0,0.388]
[1748351511240,0.19070097,110120.0,110110.0,0.50948]
[1748351511463,0.19070097,110120.0,110110.0,0.388]
[1748351511913,0.18165122,110140.0,110130.0,0.52160355]
[1748351512140,0.19073032,110140.0,110130.0,0.57918364]
[1748351512372,0.19073032,110140.0,110130.0,0.3885]
[1748351512838,0.19073032,110140.0,110130.0,0.41573]
[1748351513521,0.19073032,110140.0,110130.0,0.81898255]
[1748351513771,0.01815597,110150.0,110140.0,0.22998707]
[1748351514014,0.21803178,110150.0,110140.0,0.22998707]
[1748351514262,0.02738268,110150.0,110140.0,0.22998707]
[1748351514493,0.0364612,110150.0,110140.0,0.25287307]
[1748351514981,0.27263946,110150.0,110140.0,0.022886]
[1748351514983,0.82932765,110150.0,110140.0,0.022886]
[1748351515450,0.82932765,110150.0,110140.0,0.00858225]
[1748351517137,0.754524,110150.0,110140.0,0.00858225]
[1748351517646,0.02724176,110120.0,110110.0,0.76929976]
[1748351517890,0.21794281,110120.0,110110.0,0.77789504]
[1748351518125,0.21794257,110120.0,110110.0,0.78697686]
[1748351518377,0.21794257,110120.0,110110.0,0.77789504]
[1748351518628,0.18161575,110140.0,110130.0,0.3892]
[1748351518629,0.19974527,110140.0,110130.0,0.3892]
[1748351518872,0.19974527,110140.0,110130.0,0.57939883]
[1748351519115,0.02723747,110140.0,110130.0,0.58847892]
[1748351519345,0.02723689,110140.0,110130.0,0.59755893]
[1748351519573,0.00907877,110140.0,110130.0,0.59755893]
[1748351519813,0.19987565,110150.0,110140.0,0.22998707]
[1748351520060,0.19987565,110150.0,110140.0,0.24430944]
[1748351520524,0.01830424,110150.0,110140.0,0.25338862]
[1748351520754,0.02738243,110150.0,110140.0,0.25338717]
[1748351520994,0.02738243,110150.0,110140.0,0.22998707]
[1748351520995,0.03646079,110150.0,110140.0,0.22998707]
[1748351521218,0.208954,110150.0,110140.0,0.23858004]
[1748351521461,0.00014843,110150.0,110140.0,2.78325006]
[1748351521687,0.00014843,110150.0,110140.0,2.38381612]
[1748351521915,0.00014843,110150.0,110140.0,1.9543231]
[1748351522149,0.00014843,110150.0,110140.0,2.33453012]
[1748351522382,0.00014843,110150.0,110140.0,2.44012492]
[1748351522672,0.19056484,110200.0,110190.0,0.18150467]
[1748351522902,0.19056484,110200.0,110190.0,0.22980467]
[1748351522903,0.2092061,110200.0,110190.0,0.22980467]
[1748351523142,0.18198362,110200.0,110190.0,0.07119216]
[1748351523370,0.27303757,110200.0,110190.0,0.07119216]
[1748351523604,0.27303757,110200.0,110190.0,0.03309297]
[1748351523854,0.27303757,110200.0,110190.0,0.00859297]
[1748351524095,0.00049542,110200.0,110190.0,0.57839764]
[1748351524323,0.20013153,110200.0,110190.0,0.83197859]
[1748351524548,0.00049542,110200.0,110190.0,0.75652379]
[1748351524785,0.00049542,110200.0,110190.0,1.18935844]
[1748351525011,0.00049542,110200.0,110190.0,1.25754432]
[1748351525474,0.00956925,110200.0,110190.0,0.89562567]
[1748351525708,0.00049542,110200.0,110190.0,1.01390432]
[1748351526639,0.00049542,110200.0,110190.0,0.92285037]
[1748351527104,0.00049542,110200.0,110190.0,2.17620717]
[1748351527345,0.00049542,110200.0,110190.0,2.08878117]
[1748351527808,0.00049542,110200.0,110190.0,1.37773282]
[1748351528034,0.00049542,110200.0,110190.0,1.49088008]
[1748351528744,0.00049542,110200.0,110190.0,0.88992008]
[1748351528933,0.00049542,110200.0,110190.0,1.81795643]
[1748351529604,0.00049542,110200.0,110190.0,1.92355123]
[1748351530057,0.00049542,110200.0,110190.0,3.13614623]
[1748351530497,0.00049542,110200.0,110190.0,2.61184123]
[1748351530746,0.00049542,110200.0,110190.0,1.85173138]
[1748351530969,0.00049542,110200.0,110190.0,1.97099938]
[1748351531889,0.00049542,110200.0,110190.0,0.88509382]
[1748351532113,0.00049542,110200.0,110190.0,1.32084337]
[1748351533720,0.00049542,110200.0,110190.0,2.55509437]
[1748351533944,0.00049542,110200.0,110190.0,2.43707837]
[1748351534197,0.00049542,110200.0,110190.0,1.93614937]
[1748351534423,0.00049542,110200.0,110190.0,1.46572337]
[1748351534646,0.00049542,110200.0,110190.0,1.19074937]
[1748351534874,0.00049542,110200.0,110190.0,1.5089702]
[1748351535123,0.00049542,110200.0,110190.0,2.09959262]
[1748351535612,0.00049542,110200.0,110190.0,2.12680262]
[1748351535844,0.00049542,110200.0,110190.0,4.77346362]
[1748351536081,0.00049542,110200.0,110190.0,4.0633466]
[1748351536313,0.00049542,110200.0,110190.0,4.07186688]
[1748351536806,0.05259545,110250.0,110240.0,0.18142235]
[1748351537044,0.24307146,110250.0,110240.0,0.18142235]
[1748351537274,0.23415016,110250.0,110240.0,0.18994298]
[1748351537501,0.2250802,110250.0,110240.0,0.18994298]
[1748351538242,0.2250802,110250.0,110240.0,0.21354298]
[1748351539853,0.2250802,110250.0,110240.0,0.22205938]
[1748351540342,0.2250802,110250.0,110240.0,0.04063703]
[1748351540574,0.21601016,110250.0,110240.0,0.22205938]
[1748351540798,0.22507988,110250.0,110240.0,0.01703703]
[1748351541019,0.31613383,110250.0,110240.0,0.01703703]
[1748351541242,0.04367349,110250.0,110240.0,0.24865938]
[1748351541457,0.2250802,110250.0,110240.0,0.01703703]
[1748351541672,0.2250802,110250.0,110240.0,0.18993875]
[1748351541925,0.02553398,110250.0,110240.0,1.65816675]
[1748351542162,0.02553398,110250.0,110240.0,1.77406293]
[1748351542383,0.02553398,110250.0,110240.0,1.80493121]
[1748351542606,0.02553398,110250.0,110240.0,1.83204764]
[1748351543051,0.02553398,110250.0,110240.0,2.87330164]
[1748351543756,0.02553398,110250.0,110240.0,1.91492059]
[1748351543973,0.02553398,110250.0,110240.0,3.19852059]
[1748351544190,0.02553398,110250.0,110240.0,2.98401559]
[1748351544414,0.02553398,110250.0,110240.0,2.27674816]
[1748351544646,0.02553398,110250.0,110240.0,2.76170516]
[1748351544862,0.02553398,110250.0,110240.0,1.38401411]
[1748351545090,0.02553398,110250.0,110240.0,1.61404143]
[1748351545311,0.02553398,110250.0,110240.0,1.70509538]
[1748351546041,0.02553398,110250.0,110240.0,2.50214438]
[1748351546468,0.02553398,110250.0,110240.0,2.51668523]
[1748351546693,0.02553398,110250.0,110240.0,1.90534838]
[1748351546913,0.02553398,110250.0,110240.0,2.38436923]
[1748351547132,0.02553398,110250.0,110240.0,2.45041923]
[1748351547350,0.02553398,110250.0,110240.0,2.46319543]
[1748351547573,0.02553398,110250.0,110240.0,1.6234765]
[1748351547798,0.02553398,110250.0,110240.0,2.4279155]
[1748351548016,0.02553398,110250.0,110240.0,3.51019627]
[1748351548440,0.02553398,110250.0,110240.0,3.4806302]
[1748351549100,0.02553398,110250.0,110240.0,3.42836527]
[1748351549325,0.02553398,110250.0,110240.0,3.4553382]
[1748351549819,0.02553398,110250.0,110240.0,2.89440927]
[1748351550040,0.02553398,110250.0,110240.0,3.7866212]
[1748351550474,0.02553398,110250.0,110240.0,3.4429462]
[1748351551149,0.02553398,110250.0,110240.0,3.4089382]
[1748351551358,0.02553398,110250.0,110240.0,2.77609708]
[1748351551998,0.02553398,110250.0,110240.0,1.68933731]
[1748351552223,0.02553398,110250.0,110240.0,3.22249208]
[1748351552591,0.02553398,110250.0,110240.0,2.66502501]
[1748351552793,0.02553398,110250.0,110240.0,2.98227008]
[1748351552993,0.02553398,110250.0,110240.0,3.72353908]
[1748351553197,0.02553398,110250.0,110240.0,1.88952408]
[1748351553429,0.02553398,110250.0,110240.0,2.86572408]
[1748351553656,0.02553398,110250.0,110240.0,2.43711431]
[1748351553839,0.02553398,110250.0,110240.0,2.28092408]
[1748351554040,0.02553398,110250.0,110240.0,2.38725131]
[1748351554411,0.02553398,110250.0,110240.0,0.6896693]
[1748351554614,0.04367357,110250.0,110240.0,0.87923335]
[1748351554831,0.04367349,110250.0,110240.0,0.89737516]
[1748351555039,0.04367349,110250.0,110240.0,0.89737525]
[1748351555247,0.23414992,110250.0,110240.0,0.87923335]
[1748351555449,0.22508012,110250.0,110240.0,0.51192]
[1748351555658,0.22508012,110250.0,110240.0,0.69334235]
[1748351556106,0.19049346,110240.0,110230.0,0.614882]
[1748351556313,0.19049346,110240.0,110230.0,0.5727988]
[1748351556516,0.19049346,110240.0,110230.0,0.9127988]
[1748351556736,0.19049346,110240.0,110230.0,0.73136]
[1748351557395,0.28154741,110240.0,110230.0,0.39136]
[1748351557623,0.28154741,110240.0,110230.0,0.39992521]
[1748351558475,0.28154741,110240.0,110230.0,0.73992521]
[1748351558694,0.19049346,110240.0,110230.0,0.92136401]
[1748351558910,0.28154741,110240.0,110230.0,0.74849471]
[1748351559978,0.28154741,110240.0,110230.0,0.4227776]
[1748351560401,0.28154741,110240.0,110230.0,0.0314176]
[1748351560813,0.28154741,110240.0,110230.0,0.02285239]
[1748351562396,0.28154741,110240.0,110230.0,0.01928724]
[1748351562625,0.19051057,110230.0,110220.0,0.35428289]
[1748351562847,0.28156452,110230.0,110220.0,0.36285998]
[1748351563471,0.09105395,110230.0,110220.0,0.54431525]
[1748351563702,0.00907119,110230.0,110220.0,0.82330363]
[1748351563933,0.03460419,110250.0,110240.0,0.18142235]
[1748351564140,0.31613383,110250.0,110240.0,0.18142235]
[1748351564348,0.36588643,110250.0,110240.0,0.01428994]
[1748351564767,0.31613383,110250.0,110240.0,0.01428994]
[1748351564979,0.31613383,110250.0,110240.0,0.02286784]
[1748351565228,0.30799382,110250.0,110240.0,0.07286784]
[1748351565431,0.23552974,110270.0,110260.0,0.24912771]
[1748351565432,0.05415529,110270.0,110260.0,0.24912771]
[1748351565641,0.05415529,110270.0,110260.0,1.03905396]
[1748351565864,0.05415529,110270.0,110260.0,1.28418075]
[1748351566100,0.05415529,110270.0,110260.0,1.29324972]
[1748351566300,0.05415529,110270.0,110260.0,1.28467182]
[1748351566509,0.06322319,110270.0,110260.0,1.29324049]
[1748351566724,0.06322319,110270.0,110260.0,1.2482106]
[1748351567148,0.07229126,110270.0,110260.0,1.2754046]
[1748351567362,0.25366499,110270.0,110260.0,0.59482311]
[1748351567574,0.25366499,110270.0,110260.0,0.41151811]
[1748351567791,0.2536654,110270.0,110260.0,0.41151811]
[1748351567998,0.2536654,110270.0,110260.0,0.42579872]
[1748351568208,0.2486654,110270.0,110260.0,0.07244928]
[1748351568427,0.23959692,110270.0,110260.0,0.20423872]
[1748351568714,0.24866516,110270.0,110260.0,0.20423872]
[1748351568923,0.26680195,110270.0,110260.0,0.20423872]
[1748351569567,0.2577338,110270.0,110260.0,0.20423872]
[1748351569782,0.05822319,110270.0,110260.0,0.23144613]
[1748351570003,0.06729151,110270.0,110260.0,0.02284928]
[1748351570212,0.34668943,110270.0,110260.0,0.0192822]
[1748351570439,0.32158223,110270.0,110260.0,0.00856831]
[1748351570646,0.32158223,110270.0,110260.0,0.0192822]
[1748351571288,0.32158223,110270.0,110260.0,0.00856831]
[1748351571510,0.18142235,110240.0,110220.0,0.32141636]
[1748351571727,0.19051065,110230.0,110220.0,0.27415271]
[1748351571941,0.19051065,110230.0,110220.0,0.24709929]
[1748351572367,0.19051065,110230.0,110220.0,0.21854858]
[1748351572795,0.19051065,110230.0,110220.0,0.16874858]
[1748351573020,0.2815646,110230.0,110220.0,0.16874858]
[1748351573223,0.32843143,110230.0,110220.0,0.00014858]
[1748351574128,0.2815646,110230.0,110220.0,0.00014858]
[1748351574336,0.19051065,110230.0,110220.0,0.04904858]
[1748351574549,0.19051065,110230.0,110220.0,0.00014858]
[1748351575011,0.19051065,110230.0,110220.0,0.04934858]
[1748351576986,0.19956367,110240.0,110230.0,0.4446]
[1748351577191,0.23959692,110270.0,110230.0,2.35915682]
[1748351577423,0.06450982,110270.0,110250.0,0.34]
[1748351577635,0.2668017,110270.0,110260.0,0.05]
[1748351577852,0.07636007,110270.0,110260.0,0.05]
[1748351578277,0.26680154,110270.0,110260.0,0.05]
[1748351578487,0.08542855,110270.0,110260.0,0.05]
[1748351578702,0.08542896,110270.0,110260.0,0.496016]
[1748351578915,0.26680195,110270.0,110260.0,0.496016]
[1748351579128,0.05822328,110270.0,110260.0,0.496016]
[1748351579345,0.06729143,110270.0,110260.0,0.70461327]
[1748351579559,0.05822328,110270.0,110260.0,0.70461335]
[1748351579779,0.06729143,110270.0,110260.0,0.70461335]
[1748351580018,0.05822328,110270.0,110260.0,0.72275138]
[1748351580246,0.04915529,110270.0,110260.0,0.7227508]
[1748351580444,0.04915529,110270.0,110260.0,2.5868988]
[1748351580664,0.04915529,110270.0,110260.0,2.28808575]
[1748351581586,0.04915529,110270.0,110260.0,2.7605706]
[1748351581805,0.0274189,110270.0,110260.0,2.7605706]
[1748351582027,0.0274189,110270.0,110260.0,2.7899602]
[1748351582448,0.0274189,110270.0,110260.0,2.95166235]
[1748351582683,0.01149,110280.0,110270.0,0.25787794]
[1748351582903,0.01149,110280.0,110270.0,1.48016789]
[1748351583111,0.01149,110280.0,110270.0,1.50955749]
[1748351583328,0.01149,110280.0,110270.0,1.83470874]
[1748351583539,0.06061119,110290.0,110280.0,3.17038502]
[1748351583745,0.06075961,110290.0,110280.0,3.17936421]
[1748351583986,0.06075961,110290.0,110280.0,3.40246408]
[1748351584194,0.06075961,110290.0,110280.0,3.42958051]
[1748351584419,0.00745615,110290.0,110280.0,3.75887944]
[1748351584626,0.00483594,110290.0,110280.0,3.70246408]
[1748351584840,0.06014783,110310.0,110300.0,0.91236206]
[1748351585052,0.0169414,110360.0,110350.0,0.02718523]
[1748351585260,0.0169414,110360.0,110350.0,3.45852473]
[1748351585480,0.0169414,110360.0,110350.0,2.25407804]
[1748351585481,0.01743633,110360.0,110350.0,2.25407804]
[1748351585705,0.01743633,110360.0,110350.0,2.42267804]
[1748351585915,0.28339285,110420.0,110380.0,0.56039224]
[1748351585916,0.092092,110420.0,110380.0,0.56039224]
[1748351586126,0.03674652,110420.0,110410.0,0.59771346]
[1748351586332,0.21521609,110430.0,110410.0,0.59771346]
[1748351586333,0.018107,110450.0,110430.0,0.005]
[1748351586548,0.018107,110450.0,110430.0,0.00230661]
[1748351586549,0.01810814,110440.0,110430.0,0.00230661]
[1748351586767,0.19920268,110440.0,110430.0,0.53174561]
[1748351586980,0.19920268,110440.0,110430.0,0.00230661]
[1748351587190,0.19920268,110440.0,110430.0,0.09336056]
[1748351587408,0.19420268,110440.0,110430.0,0.09336056]
[1748351587674,0.19016554,110430.0,110420.0,0.00230661]
[1748351587889,0.19925673,110410.0,110400.0,0.35684746]
[1748351588093,0.19925673,110410.0,110400.0,0.54653961]
[1748351588327,0.19018293,110420.0,110410.0,0.15169441]
[1748351588531,0.19018293,110420.0,110410.0,0.64507356]
[1748351588532,0.19923884,110420.0,110410.0,0.64507356]
[1748351588735,0.20829435,110420.0,110410.0,2.84439761]
[1748351588948,0.19923868,110420.0,110410.0,1.01719956]
[1748351589154,0.19938717,110420.0,110410.0,0.43336056]
[1748351589371,0.19938717,110420.0,110410.0,0.09336056]
[1748351589592,0.19929283,110390.0,110380.0,0.58526661]
[1748351589798,0.19023445,110390.0,110380.0,0.86108156]
[1748351590008,0.19023445,110390.0,110380.0,0.23654156]
[1748351590220,0.19023445,110390.0,110380.0,0.09336056]
[1748351590424,0.18120866,110370.0,110360.0,0.41718661]
[1748351590638,0.18120866,110370.0,110360.0,0.85748101]
[1748351590850,0.20838847,110370.0,110360.0,1.51571201]
[1748351591103,0.18117583,110390.0,110380.0,0.00230661]
[1748351591300,0.19928237,110410.0,110400.0,0.00230661]
[1748351591611,0.19928237,110410.0,110400.0,1.35379056]
[1748351591612,0.2083401,110410.0,110400.0,1.35379056]
[1748351591840,0.19018284,110420.0,110410.0,0.36585861]
[1748351592048,0.18116441,110430.0,110420.0,0.34230661]
[1748351592049,0.01811027,110430.0,110420.0,0.34230661]
[1748351592260,0.01825879,110430.0,110420.0,0.34230661]
[1748351592478,0.18125872,110430.0,110410.0,0.00230661]
[1748351592691,0.18125872,110430.0,110390.0,0.39104]
[1748351592692,0.00905739,110400.0,110390.0,0.39334661]
[1748351592923,0.01811355,110410.0,110400.0,0.00230661]
[1748351593152,0.02717267,110400.0,110380.0,0.17486661]
[1748351593387,0.0245,110410.0,110390.0,0.34]
[1748351593598,0.20829539,110420.0,110390.0,0.34230661]
[1748351593804,0.14000247,110430.0,110400.0,0.19021673]
[1748351594012,0.03390378,110430.0,110410.0,0.52114269]
[1748351594227,0.00014852,110430.0,110420.0,0.1811266]
[1748351594438,0.00014852,110430.0,110410.0,0.64167427]
[1748351594439,0.02731381,110430.0,110410.0,0.64167427]
[1748351594645,0.03636841,110430.0,110410.0,0.65073084]
[1748351594849,0.01811159,110420.0,110410.0,0.53184107]
[1748351595083,0.00905559,110420.0,110410.0,0.53184107]
[1748351595291,0.22363868,110420.0,110410.0,0.34839145]
[1748351595496,0.23968276,110420.0,110400.0,0.18346473]
[1748351595721,0.00014852,110430.0,110420.0,1.54747022]
[1748351595952,0.00014852,110430.0,110420.0,2.15872417]
[1748351596157,0.00014852,110430.0,110420.0,2.018241]
[1748351596371,1.618e-05,110430.0,110420.0,2.18036582]
[1748351596597,0.00842046,110460.0,110450.0,0.52338402]
[1748351596801,0.00842046,110460.0,110450.0,0.69843789]
[1748351596802,0.01747277,110460.0,110450.0,0.69843789]
[1748351597001,0.02652532,110460.0,110450.0,0.52338402]
[1748351597139,0.20758707,110460.0,110450.0,0.34230661]
[1748351597353,0.02652532,110460.0,110450.0,0.09336056]
[1748351597561,0.02652549,110460.0,110450.0,0.00230661]
[1748351597770,0.02652549,110460.0,110450.0,0.82866686]
[1748351597771,0.00842046,110460.0,110450.0,0.82866686]
[1748351597974,0.00842046,110460.0,110450.0,0.82640358]
[1748351598214,0.03557812,110460.0,110450.0,0.97580297]
[1748351598372,0.20758715,110460.0,110450.0,0.51886661]
[1748351598575,0.20758666,110460.0,110450.0,0.51886661]
[1748351598813,0.20758699,110460.0,110450.0,0.51656]
[1748351598999,0.23098699,110460.0,110450.0,0.51656]
[1748351599522,0.25868699,110460.0,110450.0,0.51656]
[1748351600145,0.24123111,110450.0,110440.0,0.39092]
[1748351600347,0.19018276,110420.0,110410.0,0.42274661]
[1748351600575,0.19018276,110420.0,110410.0,0.76289513]
[1748351600886,0.19018276,110420.0,110410.0,0.12052113]
[1748351601096,0.19018276,110420.0,110410.0,0.02730552]
[1748351601296,0.24278276,110420.0,110410.0,0.00014852]
[1748351601733,0.19018276,110420.0,110410.0,0.00245513]
[1748351601939,0.21578276,110420.0,110410.0,0.00014852]
[1748351602352,0.81520778,110420.0,110410.0,0.00014852]
[1748351602560,0.81520778,110420.0,110380.0,0.027164]
[1748351602561,0.23207583,110390.0,110380.0,0.027164]
[1748351602775,0.1812415,110350.0,110330.0,0.60231319]
[1748351603019,0.1812415,110350.0,110340.0,0.28368114]
[1748351603232,0.00906002,110370.0,110360.0,0.01812209]
[1748351603445,0.18123936,110380.0,110360.0,1.55642194]
[1748351603667,0.20838905,110370.0,110360.0,0.74467352]
[1748351603897,0.02718039,110370.0,110360.0,1.57066606]
[1748351604111,0.19023453,110390.0,110380.0,0.00230661]
[1748351604531,0.01826497,110390.0,110380.0,0.34230661]
[1748351604744,0.03638172,110390.0,110380.0,1.88911661]
[1748351604951,0.03638213,110390.0,110380.0,0.86045061]
[1748351605175,0.21755837,110390.0,110380.0,0.44802061]
[1748351605384,0.20849991,110390.0,110380.0,0.34230661]
[1748351605608,0.20849991,110390.0,110380.0,0.69158485]
[1748351606274,0.19944137,110390.0,110380.0,0.69158485]
[1748351606483,0.22284137,110390.0,110380.0,0.34]
[1748351606695,0.22284137,110390.0,110360.0,0.39310661]
[1748351606696,0.19932894,110370.0,110360.0,0.39310661]
[1748351607020,0.00905977,110370.0,110360.0,0.74299678]
[1748351607112,0.02717989,110370.0,110360.0,0.74299694]
[1748351607368,0.03624015,110370.0,110360.0,0.74299694]
[1748351607592,0.03623991,110370.0,110360.0,1.10111886]
[1748351607845,0.04530026,110370.0,110360.0,1.53037929]
[1748351608088,0.19931071,110380.0,110370.0,0.34]
[1748351608332,0.1902516,110380.0,110370.0,0.34]
[1748351608834,0.1993291,110370.0,110360.0,0.58339294]
[1748351609079,0.1993291,110370.0,110360.0,1.09787303]
[1748351609313,0.1993291,110370.0,110360.0,1.22452582]
[1748351609767,0.1993291,110370.0,110360.0,0.63043132]
[1748351609768,0.18120866,110370.0,110360.0,0.63043132]
[1748351609991,0.18120866,110370.0,110360.0,0.64795658]
[1748351610230,0.18120866,110370.0,110360.0,0.19438263]
[1748351610710,0.18120866,110370.0,110360.0,0.53438263]
[1748351610711,0.20630866,110370.0,110360.0,0.53438263]
[1748351610929,0.23280866,110370.0,110360.0,0.53438263]
[1748351611410,0.23280866,110370.0,110360.0,0.35692992]
[1748351611648,0.00920651,110390.0,110380.0,0.19025177]
[1748351611890,0.2174296,110380.0,110370.0,0.54163588]
[1748351612119,0.21742952,110380.0,110370.0,0.94088306]
[1748351612364,0.01811798,110380.0,110370.0,0.96748653]
[1748351612610,0.01811798,110380.0,110370.0,1.42304713]
[1748351612611,0.19931088,110380.0,110370.0,1.42304713]
[1748351612884,0.19931088,110380.0,110370.0,0.82659773]
[1748351613151,0.19025168,110380.0,110370.0,0.78127174]
[1748351613421,0.19025168,110380.0,110370.0,0.50808549]
[1748351613672,0.19025168,110380.0,110370.0,0.47452697]
[1748351613900,0.18132396,110390.0,110370.0,0.47452697]
[1748351613901,0.01826529,110390.0,110380.0,0.20161766]
[1748351614144,0.01826529,110390.0,110380.0,0.59874266]
[1748351614379,0.19944112,110390.0,110380.0,0.46361385]
[1748351614621,0.00014813,110390.0,110380.0,0.36375127]
[1748351614854,0.01826472,110390.0,110380.0,0.36375127]
[1748351615085,0.00014813,110390.0,110380.0,0.37281063]
[1748351615320,0.00014813,110390.0,110380.0,0.71281079]
[1748351615567,0.01826447,110390.0,110380.0,0.52349885]
[1748351615797,0.02732301,110390.0,110380.0,0.65304946]
[1748351616019,0.02732293,110390.0,110380.0,0.65304946]
[1748351616245,0.02732293,110390.0,110380.0,0.65301899]
[1748351616473,0.00014813,110390.0,110380.0,1.47204041]
[1748351616707,0.01826496,110390.0,110380.0,0.52349885]
[1748351616944,0.01826496,110390.0,110370.0,0.19760207]
[1748351616945,0.18119224,110380.0,110370.0,0.19760207]
[1748351617191,0.18119224,110380.0,110370.0,0.75541542]
[1748351617192,0.01811889,110380.0,110370.0,0.75541542]
[1748351617429,0.18119224,110380.0,110360.0,0.21452399]
[1748351617667,0.01811963,110370.0,110360.0,0.67276144]
[1748351617897,0.01811963,110370.0,110360.0,0.86267111]
[1748351618119,0.01811954,110370.0,110360.0,0.86670038]
[1748351618368,0.04530001,110370.0,110360.0,0.54043134]
[1748351618606,0.1993291,110370.0,110360.0,0.01692992]
[1748351618854,0.2254291,110370.0,110360.0,0.198155]
[1748351619082,0.18119224,110380.0,110370.0,0.18351527]
[1748351619083,0.00905928,110380.0,110370.0,0.18351527]
[1748351619311,0.19026868,110370.0,110360.0,0.20046161]
[1748351619534,0.02718022,110370.0,110360.0,0.20952278]
[1748351619756,0.01811996,110370.0,110360.0,0.31777286]
[1748351619979,0.01811996,110370.0,110360.0,0.33534763]
[1748351620206,0.01811946,110370.0,110360.0,0.34440846]
[1748351620429,0.03623941,110370.0,110360.0,0.34440846]
[1748351620645,0.05327825,110380.0,110370.0,0.18120866]
[1748351621074,0.19038258,110390.0,110380.0,0.18119224]
[1748351621304,0.02732342,110390.0,110380.0,0.18119224]
[1748351621522,0.21755795,110390.0,110380.0,0.18119224]
[1748351621738,0.00014813,110390.0,110380.0,1.59381661]
[1748351621961,0.00014813,110390.0,110380.0,1.60287564]
[1748351622241,0.00014813,110390.0,110380.0,1.37002684]
[1748351622689,0.19848005,110400.0,110390.0,1.23515644]
[1748351622899,0.02637786,110400.0,110390.0,1.25535423]
[1748351623119,0.23511306,110410.0,110400.0,0.18346603]
[1748351623332,0.23511388,110410.0,110400.0,0.18346603]
[1748351623772,0.05397087,110410.0,110400.0,0.18346603]
[1748351624002,0.05397078,110410.0,110400.0,0.18346603]
[1748351624255,0.20833233,110400.0,110390.0,0.52348244]
[1748351625132,0.01811503,110400.0,110390.0,0.63070844]
[1748351625356,0.21739022,110400.0,110390.0,0.52348244]
[1748351626075,0.18114301,110410.0,110400.0,0.18346603]
[1748351626076,0.01811355,110410.0,110400.0,0.18346603]
[1748351626290,0.0271707,110410.0,110400.0,0.18346603]
[1748351626961,0.01811355,110410.0,110400.0,0.18346603]
[1748351627182,0.02717061,110410.0,110400.0,0.192524]
[1748351627401,0.02717061,110410.0,110400.0,0.18346603]
[1748351627617,0.20831362,110410.0,110400.0,0.18346603]
[1748351628066,0.19925697,110410.0,110400.0,0.18346603]
[1748351628506,0.19020007,110410.0,110400.0,0.18346603]
[1748351628733,0.19020007,110410.0,110390.0,0.34230661]
[1748351628734,0.19927478,110400.0,110390.0,0.34230661]
[1748351628959,0.19927478,110400.0,110390.0,0.64111444]
[1748351629399,0.19927478,110400.0,110370.0,0.70199527]
[1748351629400,0.00905911,110380.0,110370.0,0.70199527]
[1748351629634,0.00905911,110380.0,110370.0,1.10215588]
[1748351629635,0.00905887,110380.0,110370.0,1.10215588]
[1748351629917,0.018117,110390.0,110380.0,0.52119224]